lending/lending_fUSD_20251021
["ID","MTS","AMOUNT","RATE_DAILY","PERIOD"]
[391975605,1761048637820,-453.82012324,0.0001511,2]
[391975607,1761048637829,-500.0,0.0001511,2]
[391975609,1761048637838,-272.23189463,0.00015122,2]
[391975611,1761048637847,-150.0,0.00015122,2]
[391975613,1761048637856,-151.0,0.00015127,2]
[391975615,1761048637866,-151.0,0.00015127,2]
[391975616,1761048637875,-151.0,0.00015127,2]
[391975618,1761048637885,-151.0,0.00015128,2]
[391975620,1761048637894,-500.0,0.00015164,2]
[391975622,1761048637903,-901.99,0.00015174,2]
[391975624,1761048637912,-150.0,0.00015177,2]
[391975627,1761048637923,-500.0,0.00015219,2]
[391975629,1761048637933,-666.0,0.00015222,3]
[391975631,1761048637941,-150.0,0.00015231,2]
[391975632,1761048637950,-168.0,0.00015254,2]
[391975634,1761048637959,-500.0,0.00015274,2]
[391975637,1761048637968,-610.0,0.00015286,2]
[391975638,1761048637978,-500.0,0.00015329,2]
[391975640,1761048637987,-168.0,0.00015374,2]
[391975643,1761048637996,-500.0,0.00015384,2]
[391975644,1761048638006,-168.32,0.00015404,2]
[391975647,1761048638015,-500.0,0.00015438,2]
[391975649,1761048638024,-610.0,0.00015444,2]
[391975651,1761048638034,-270.99346185,0.00015447,2]
[391975653,1761048638044,-901.99,0.00015448,2]
[391975655,1761048638053,-2500.0,0.00015474,2]
[391975657,1761048638062,-155.85090902,0.00015474,2]
[391975659,1761048638071,-195.0,0.00015474,2]
[391975661,1761048638080,-254.43878663,0.00015474,2]
[391975663,1761048638089,-500.0,0.00015474,2]
[391975664,1761048638098,-195.0,0.00015474,2]
[391975666,1761048638108,-1006.32842199,0.00015474,2]
[391975668,1761048638117,-2500.0,0.00015474,2]
[391975670,1761048638126,-300.0,0.00015474,2]
[391975672,1761048638135,-367.731836,0.00015474,2]
[391975674,1761048638144,-3000.0,0.00015474,2]
[391975676,1761048638154,-300.0,0.00015474,2]
[391975678,1761048638164,-500.0,0.00015493,2]
[391975680,1761048638173,-250.0,0.00015498,2]
[391975683,1761048638183,-166.65,0.00015525,2]
[391975685,1761048638192,-213.09,0.0001553,2]
[391975687,1761048638201,-274.71,0.00015534,2]
[391975688,1761048638210,-500.0,0.00015548,2]
[391975691,1761048638220,-1000.0,0.0001557,2]
[391975692,1761048638229,-500.0,0.00015603,2]
[391975694,1761048638239,-168.0,0.00015611,2]
[391975697,1761048638248,-168.0,0.0001565,2]
[391975699,1761048638258,-151.04,0.00015651,2]
[391975701,1761048638267,-610.0,0.00015651,2]
[391975703,1761048638277,-500.0,0.00015658,2]
[391975705,1761048638286,-164.47,0.00015664,2]
[391975706,1761048638296,-610.0,0.00015695,2]
[391975709,1761048638305,-500.0,0.00015712,2]
[391975711,1761048638315,-901.99,0.00015722,2]
[391975713,1761048638324,-500.0,0.00015767,2]
[391975714,1761048638334,-610.0,0.00015801,2]
[391975717,1761048638344,-564.69543425,0.00015822,2]
[391975719,1761048638355,-168.0,0.0001584,2]
[391975720,1761048638365,-684.12374,0.0001585,2]
[391975722,1761048638374,-901.99,0.00015996,2]
[391975724,1761048638384,-166.65,0.00016117,2]
[391975727,1761048638394,-164.47,0.00016261,2]
[391975728,1761048638403,-901.99,0.0001627,2]
[391975731,1761048638413,-713.0,0.00016322,2]
[391975733,1761048638422,-151.0,0.00016438,2]
[391975734,1761048638431,-162.81,0.0001644,2]
[391975736,1761048638441,-387.62853951,0.00016469,2]
[391975738,1761048638450,-901.99,0.00016544,2]
[391975740,1761048638460,-166.65,0.00016708,2]
[391975743,1761048638470,-14013.94292837,0.00016759,2]
[391975745,1761048638480,-901.99,0.00016818,2]
[391975747,1761048638494,-684.12375,0.0001685,2]
[391975749,1761048638504,-164.47,0.00016858,2]
[391975751,1761048638513,-4393.2529722,0.00016887,2]
[391975753,1761048638523,-194.621,0.0001691,2]
[391975755,1761048638532,-161.627,0.0001691,2]
[391975757,1761048638541,-152.904585,0.0001691,2]
[391975759,1761048638550,-151.0,0.0001691,2]
[391975761,1761048638559,-2357.994,0.0001691,2]
[391975763,1761048638570,-2051.0,0.0001691,2]
[391975765,1761048638578,-756.289,0.0001691,2]
[391975767,1761048638587,-577.029,0.0001691,2]
[391975769,1761048638598,-1600.782,0.0001691,2]
[391975771,1761048638608,-612.34,0.0001691,2]
[391975773,1761048638617,-151.0,0.0001691,2]
[391975775,1761048638626,-1373.581,0.0001691,2]
[391975776,1761048638635,-1267.0,0.0001691,2]
[391975778,1761048638645,-818.0,0.0001691,2]
[391975780,1761048638654,-151.0,0.0001691,2]
[391975782,1761048638664,-151.0,0.0001691,2]
[391975803,1761048638869,-151.0,0.0001691,2]
[391975805,1761048638879,-154.119924,0.0001691,2]
[391975807,1761048638889,-957.542423,0.0001691,2]
[391975809,1761048638900,-957.542423,0.0001691,2]
[391975811,1761048638908,-957.542423,0.0001691,2]
[391975813,1761048638918,-957.542423,0.0001691,2]
[391975815,1761048638929,-250.0,0.00017,2]
[391975817,1761048638940,-901.99,0.00017092,2]
[391975819,1761048638950,-169.0440138,0.00017217,2]
[391975821,1761048638960,-213.09,0.00017256,2]
[391975823,1761048638971,-980.2672392,0.00017311,2]
[391975825,1761048638982,-901.99,0.00017366,2]
[391975826,1761048638993,-1000.0,0.00017516,2]
[391975828,1761048639004,-901.99,0.0001764,2]
[391975830,1761048639014,-902.0,0.00017839,2]
[391975832,1761048639023,-2548.0,0.00017839,2]
[391975834,1761048639034,-2591.0,0.00017839,2]
[391975836,1761048639044,-557.0,0.00017839,2]
[391975838,1761048639055,-6534.0,0.00017839,2]
[391975840,1761048639064,-684.12374,0.0001785,2]
[391975842,1761048639074,-902.07932279,0.00017914,2]
[391975844,1761048639084,-6439.001,0.0001799,2]
[391975846,1761048639096,-451.96024887,0.00018,2]
[391975848,1761048639105,-841.55,0.00018082,2]
[391975850,1761048639115,-328.25024238,0.00018182,2]
[391975852,1761048639124,-174.519063,0.00018447,2]
[391975854,1761048639133,-150.273361,0.00018447,2]
[391975856,1761048639143,-841.55,0.0001876,2]
[391975858,1761048639152,-151.32,0.000188,2]
[391975860,1761048639161,-151.32,0.000188,2]
[391975862,1761048639171,-151.32,0.000188,2]
[391975864,1761048639181,-476.03091061,0.00018809,2]
[391975866,1761048639190,-684.12375,0.0001885,2]
[391975868,1761048639199,-197.99268322,0.000189,2]
[391975870,1761048639209,-511.18920727,0.00018973,2]
[391975872,1761048639218,-501.14771643,0.00018973,2]
[391975874,1761048639227,-503.61905143,0.00018973,2]
[391975876,1761048639236,-213.09,0.00018981,2]
[391975878,1761048639246,-77565.29126719,0.00019,2]
[391975880,1761048639255,-77565.29126719,0.00019,2]
[391975882,1761048639265,-206.74227897,0.00019,2]
[391975884,1761048639274,-409.06684963,0.00019,2]
[391975886,1761048639283,-151.0,0.00019,2]
[391975888,1761048639293,-151.0,0.00019,2]
[391975890,1761048639301,-266.78286,0.00019,2]
[391975892,1761048639311,-242.413709,0.00019,2]
[391975894,1761048639320,-217.302391,0.00019,2]
[391975896,1761048639329,-957.542423,0.00019,2]
[391975898,1761048639338,-957.542423,0.00019,2]
[391975900,1761048639347,-957.542423,0.00019,2]
[391975902,1761048639358,-957.542423,0.00019,2]
[391975904,1761048639367,-957.542423,0.00019,2]
[391975906,1761048639378,-957.542423,0.00019,2]
[391975908,1761048639389,-957.542423,0.00019,2]
[391975910,1761048639399,-957.542423,0.00019,2]
[391975912,1761048639408,-151.0,0.00019178,2]
[391975913,1761048639419,-151.0,0.00019178,2]
[391975915,1761048639429,-151.0,0.00019178,2]
[391975917,1761048639439,-151.0,0.00019178,2]
[391975918,1761048639448,-151.0,0.00019178,2]
[391975919,1761048639458,-151.0,0.00019178,2]
[391975921,1761048639467,-151.0,0.00019178,2]
[391975923,1761048639478,-151.000006,0.00019178,2]
[391975924,1761048639491,-841.55,0.00019438,2]
[391975925,1761048639500,-1000.0,0.00019462,2]
[391975926,1761048639510,-2000.0,0.000197,2]
[391975927,1761048639520,-160.0,0.000198,2]
[391975928,1761048639531,-684.12374,0.0001985,2]
[391975929,1761048639540,-150.0,0.0001991,2]
[391975930,1761048639549,-572.0,0.0001991,2]
[391975931,1761048639559,-1590.0,0.0001991,2]
[391975933,1761048639571,-605.0,0.0001991,2]
[391975934,1761048639580,-1311.0,0.0001991,2]
[391975935,1761048639591,-817.0,0.0001991,2]
[391975936,1761048639602,-1057.98,0.00019919,2]
[391975937,1761048639612,-614.89,0.0002,6]
[391975938,1761048639622,-10115.49118681,0.0002,5]
[391975939,1761048639631,-1635.94,0.0002,2]
[391975940,1761048639641,-41729.0,0.0002,7]
[391975941,1761048639651,-957.542423,0.0002,7]
[391975942,1761048639661,-957.542423,0.0002,7]
[391975943,1761048639670,-957.542423,0.0002,7]
[391975944,1761048639679,-957.542416,0.0002,7]
[391975945,1761048639689,-654.0,0.00020003,10]
[391975946,1761048639699,-841.55,0.00020116,2]
[391975947,1761048639708,-243.97,0.00020187,2]
[391975948,1761048639717,-476.03091061,0.00020585,2]
[391975949,1761048639727,-213.09,0.00020707,2]
[391975950,1761048639737,-841.55,0.00020795,2]
[391975951,1761048639746,-902.0,0.00020839,2]
[391975952,1761048639755,-2548.0,0.00020839,2]
[391975953,1761048639764,-2591.0,0.00020839,2]
[391975954,1761048639774,-557.0,0.00020839,2]
[391975955,1761048639783,-5729.476,0.00020839,2]
[391975956,1761048639793,-2145.29738555,0.000209,30]
[391975957,1761048639802,-150.99,0.00020951,2]
[391975958,1761048639812,-343.56,0.00020951,2]
[391975959,1761048639821,-150.99,0.00020951,2]
[391975960,1761048639830,-5969.55,0.00020951,2]
[391975961,1761048639839,-999.99,0.00020951,2]
[391975962,1761048639849,-4759.87,0.00020951,2]
[391975963,1761048639859,-274.71,0.00020962,2]
[391975964,1761048639868,-695.92,0.00021188,2]
[391975965,1761048639878,-1536.04,0.00021188,2]
[391975966,1761048639888,-169.3,0.00021188,2]
[391975967,1761048639897,-475.23,0.00021188,2]
[391975968,1761048639907,-1049.66,0.00021188,2]
[391975969,1761048639917,-175.34,0.00021374,2]
[391975970,1761048639926,-412.17,0.00021374,2]
[391975971,1761048639935,-1000.0,0.00021408,2]
[391975972,1761048639947,-328.25024238,0.00021463,2]
[391975973,1761048639965,-6704.06874554,0.000215,2]
[391975974,1761048639975,-152.714608,0.00021895,2]
[391975975,1761048639985,-174.519063,0.00021895,2]
[391975976,1761048639994,-151.576202,0.00021895,2]
[391975977,1761048640003,-152.695199,0.00021895,2]
[391975978,1761048640012,-150.273361,0.00021895,2]
[391975979,1761048640022,-154.314848,0.00021895,2]
[391975980,1761048640032,-151.0,0.00021917,7]
[391975981,1761048640042,-151.0,0.00021917,7]
[391975982,1761048640051,-217.302386,0.00021917,7]
[391975984,1761048640060,-500.0,0.00021917,2]
[391975985,1761048640069,-500.0,0.00021917,2]
[391975986,1761048640078,-500.0,0.00021917,2]
[391975987,1761048640087,-500.0,0.00021917,2]
[391975988,1761048640097,-500.0,0.00021917,2]
[391975989,1761048640106,-500.0,0.00021917,2]
[391975990,1761048640115,-500.0,0.00021917,2]
[391975991,1761048640128,-500.0,0.00021917,2]
[391975992,1761048640137,-500.0,0.00021917,2]
[391975993,1761048640147,-500.0,0.00021917,2]
[391975994,1761048640157,-500.0,0.00021917,2]
[391975995,1761048640167,-500.0,0.00021917,2]
[391975996,1761048640176,-284.73244499,0.00021917,2]
[391975997,1761048640185,-5000.0,0.00021918,2]
[391975998,1761048640195,-151.0,0.00021918,7]
[391975999,1761048640204,-151.000009,0.00021918,7]
[391976000,1761048640213,-1457.7176636,0.00022,30]
[391976001,1761048640223,-10099.13,0.00022,7]
[391976002,1761048640231,-460.06442092,0.00022524,2]
[391976003,1761048640240,-572.0,0.0002291,2]
[391976004,1761048640249,-1311.0,0.0002291,2]
[391976005,1761048640258,-817.0,0.0002291,2]
[391976006,1761048640267,-501.00490054,0.00023273,2]
[391976007,1761048640277,-164.730209,0.00023288,7]
[391976008,1761048640286,-151.0,0.00023288,7]
[391976009,1761048640295,-158.998229,0.00023288,7]
[391976010,1761048640303,-154.82882,0.00023288,7]
[391976011,1761048640316,-151.0,0.00023288,7]
[391976012,1761048640325,-151.0,0.00023288,7]
[391976013,1761048640334,-151.858578,0.00023288,7]
[391976014,1761048640343,-151.0,0.00023288,7]
[391976015,1761048640352,-151.0,0.00023288,7]
[391976016,1761048640361,-151.0,0.00023288,7]
[391976017,1761048640371,-151.0,0.00023288,7]
[391976018,1761048640380,-248.365009,0.00023288,7]
[391976019,1761048640389,-152.775141,0.00023288,7]
[391976020,1761048640399,-153.756091,0.00023288,7]
[391976021,1761048640408,-151.0,0.00023288,7]
[391976022,1761048640417,-151.0,0.00023288,7]
[391976023,1761048640426,-263.564398,0.00023288,7]
[391976024,1761048640435,-154.017347,0.00023288,7]
[391976025,1761048640444,-151.0,0.00023288,7]
[391976026,1761048640453,-151.0,0.00023288,7]
[391976027,1761048640462,-153.088415,0.00023288,7]
[391976028,1761048640471,-151.0,0.00023288,7]
[391976029,1761048640480,-151.0,0.00023288,7]
[391976030,1761048640492,-151.0,0.00023288,7]
[391976031,1761048640501,-297.419038,0.00023288,7]
[391976032,1761048640513,-151.0,0.00023288,7]
[391976033,1761048640522,-151.0,0.00023288,7]
[391976034,1761048640531,-151.0,0.00023288,7]
[391976035,1761048640540,-153.274581,0.00023288,7]
[391976036,1761048640549,-151.0,0.00023288,7]
[391976037,1761048640558,-151.0,0.00023288,7]
[391976038,1761048640567,-151.0,0.00023288,7]
[391976039,1761048640576,-154.997725,0.00023288,7]
[391976040,1761048640585,-151.0,0.00023288,7]
[391976041,1761048640595,-151.0,0.00023288,7]
[391976042,1761048640604,-151.0,0.00023288,7]
[391976043,1761048640613,-151.0,0.00023288,7]
[391976044,1761048640622,-151.0,0.00023288,7]
[391976045,1761048640631,-151.0,0.00023288,7]
[391976046,1761048640640,-151.000004,0.00023288,7]
[391976047,1761048640649,-151.0,0.00023288,7]
[391976048,1761048640659,-201.792584,0.00023288,7]
[391976049,1761048640668,-151.0,0.00023288,7]
[391976050,1761048640677,-151.0,0.00023288,7]
[391976051,1761048640686,-153.321984,0.00023288,7]
[391976052,1761048640698,-152.398931,0.00023288,7]
[391976053,1761048640708,-151.0,0.00023288,7]
[391976054,1761048640717,-151.0,0.00023288,7]
[391976055,1761048640726,-159.898694,0.00023288,7]
[391976056,1761048640735,-153.16626,0.00023288,7]
[391976057,1761048640745,-151.0,0.00023288,7]
[391976058,1761048640754,-151.0,0.00023288,7]
[391976059,1761048640763,-151.0,0.00023288,7]
[391976060,1761048640773,-151.0,0.00023288,7]
[391976061,1761048640782,-151.0,0.00023288,7]
[391976062,1761048640791,-179.148955,0.00023288,7]
[391976063,1761048640800,-151.0,0.00023288,7]
[391976064,1761048640809,-151.0,0.00023288,7]
[391976065,1761048640818,-281.048783,0.00023288,7]
[391976066,1761048640828,-151.0,0.00023288,7]
[391976067,1761048640838,-281.048783,0.00023288,7]
[391976068,1761048640848,-151.0,0.00023288,7]
[391976069,1761048640857,-281.048783,0.00023288,7]
[391976070,1761048640866,-294.32589419,0.00023288,7]
[391976071,1761048640875,-281.048783,0.00023288,7]
[391976072,1761048640884,-281.048783,0.00023288,7]
[391976073,1761048640893,-281.048783,0.00023288,7]
[391976074,1761048640902,-281.048783,0.00023288,7]
[391976075,1761048640911,-281.048783,0.00023288,7]
[391976076,1761048640921,-281.048783,0.00023288,7]
[391976077,1761048640930,-281.048783,0.00023288,7]
[391976078,1761048640940,-281.048783,0.00023288,7]
[391976079,1761048640949,-281.048783,0.00023288,7]
[391976080,1761048640958,-152.469982,0.00023288,7]
[391976081,1761048640967,-281.048783,0.00023288,7]
[391976082,1761048640976,-281.048783,0.00023288,7]
[391976083,1761048640985,-281.048783,0.00023288,7]
[391976084,1761048640994,-281.048783,0.00023288,7]
[391976085,1761048641003,-281.048783,0.00023288,7]
[391976086,1761048641012,-281.048783,0.00023288,7]
[391976087,1761048641021,-281.048783,0.00023288,7]
[391976088,1761048641030,-281.048779,0.00023288,7]
[391976089,1761048641039,-151.0,0.00023288,7]
[391976090,1761048641049,-151.0,0.00023288,7]
[391976091,1761048641058,-151.0,0.00023288,7]
[391976092,1761048641067,-151.0,0.00023288,7]
[391976093,1761048641076,-151.0,0.00023288,7]
[391976094,1761048641085,-151.0,0.00023288,7]
[391976095,1761048641095,-151.0,0.00023288,7]
[391976096,1761048641105,-151.0,0.00023288,7]
[391976097,1761048641114,-151.0,0.00023288,7]
[391976098,1761048641123,-151.0,0.00023288,7]
[391976099,1761048641133,-151.0,0.00023288,7]
[391976100,1761048641142,-151.0,0.00023288,7]
[391976101,1761048641152,-151.0,0.00023288,7]
[391976102,1761048641161,-151.0,0.00023288,7]
[391976103,1761048641170,-151.0,0.00023288,7]
[391976104,1761048641179,-151.0,0.00023288,7]
[391976105,1761048641187,-151.0,0.00023288,7]
[391976106,1761048641197,-165.17992292,0.00023288,7]
[391976107,1761048641206,-151.0,0.00023288,7]
[391976108,1761048641216,-151.0,0.00023288,7]
[391976109,1761048641225,-151.0,0.00023288,7]
[391976110,1761048641234,-151.0,0.00023288,7]
[391976111,1761048641243,-151.0,0.00023288,7]
[391976112,1761048641252,-151.0,0.00023288,7]
[391976113,1761048641262,-151.0,0.00023288,7]
[391976114,1761048641272,-151.0,0.00023288,7]
[391976115,1761048641281,-151.0,0.00023288,7]
[391976116,1761048641290,-225.916561,0.00023288,7]
[391976117,1761048641299,-151.0,0.00023288,7]
[391976118,1761048641308,-153.31205,0.00023288,7]
[391976119,1761048641317,-151.0,0.00023288,7]
[391976120,1761048641327,-151.0,0.00023288,7]
[391976121,1761048641341,-151.0,0.00023288,7]
[391976122,1761048641349,-151.0,0.00023288,7]
[391976123,1761048641359,-151.0,0.00023288,7]
[391976124,1761048641368,-151.0,0.00023288,7]
[391976125,1761048641378,-151.0,0.00023288,7]
[391976126,1761048641387,-155.750232,0.00023288,7]
[391976127,1761048641396,-151.0,0.00023288,7]
[391976128,1761048641406,-151.0,0.00023288,7]
[391976129,1761048641415,-151.0,0.00023288,7]
[391976130,1761048641424,-169.792766,0.00023288,7]
[391976131,1761048641434,-169.792766,0.00023288,7]
[391976132,1761048641443,-169.792766,0.00023288,7]
[391976133,1761048641452,-169.792766,0.00023288,7]
[391976134,1761048641465,-169.792766,0.00023288,7]
[391976135,1761048641474,-169.792766,0.00023288,7]
[391976136,1761048641484,-169.792766,0.00023288,7]
[391976137,1761048641497,-151.0,0.00023288,7]
[391976138,1761048641506,-169.792766,0.00023288,7]
[391976139,1761048641516,-169.792766,0.00023288,7]
[391976140,1761048641526,-169.792766,0.00023288,7]
[391976141,1761048641535,-151.0,0.00023288,7]
[391976142,1761048641544,-169.792766,0.00023288,7]
[391976143,1761048641554,-151.0,0.00023288,7]
[391976144,1761048641563,-169.792766,0.00023288,7]
[391976145,1761048641573,-151.0,0.00023288,7]
[391976146,1761048641582,-169.792766,0.00023288,7]
[391976147,1761048641591,-169.792766,0.00023288,7]
[391976148,1761048641602,-151.0,0.00023288,7]
[391976149,1761048641612,-151.0,0.00023288,7]
[391976150,1761048641621,-169.792766,0.00023288,7]
[391976151,1761048641630,-151.0,0.00023288,7]
[391976152,1761048641640,-169.792766,0.00023288,7]
[391976153,1761048641649,-151.0,0.00023288,7]
[391976154,1761048641659,-169.792766,0.00023288,7]
[391976155,1761048641668,-151.0,0.00023288,7]
[391976156,1761048641677,-169.792766,0.00023288,7]
[391976157,1761048641686,-151.0,0.00023288,7]
[391976158,1761048641695,-151.0,0.00023288,7]
[391976159,1761048641704,-169.792766,0.00023288,7]
[391976160,1761048641713,-151.0,0.00023288,7]
[391976161,1761048641730,-169.792768,0.00023288,7]
[391976162,1761048641739,-151.0,0.00023288,7]
[391976163,1761048641748,-151.0,0.00023288,7]
[391976164,1761048641758,-151.0,0.00023288,7]
[391976165,1761048641767,-151.0,0.00023288,7]
[391976166,1761048641776,-256.775675,0.00023288,7]
[391976167,1761048641786,-151.0,0.00023288,7]
[391976168,1761048641795,-151.0,0.00023288,7]
[391976169,1761048641804,-151.0,0.00023288,7]
[391976170,1761048641813,-151.0,0.00023288,7]
[391976171,1761048641822,-151.0,0.00023288,7]
[391976172,1761048641832,-151.0,0.00023288,7]
[391976173,1761048641841,-151.0,0.00023288,7]
[391976174,1761048641851,-151.0,0.00023288,7]
[391976175,1761048642021,-151.0,0.00023288,7]
[391976176,1761048642031,-151.0,0.00023288,7]
[391976177,1761048642040,-182.727398,0.00023288,7]
[391976178,1761048642050,-153.391347,0.00023288,7]
[391976179,1761048642059,-151.0,0.00023288,7]
[391976180,1761048642068,-156.886278,0.00023288,7]
[391976181,1761048642077,-152.14666,0.00023288,7]
[391976182,1761048642087,-151.0,0.00023288,7]
[391976183,1761048642096,-157.2164,0.00023288,7]
[391976184,1761048642105,-166.143699,0.00023288,7]
[391976185,1761048642114,-166.143699,0.00023288,7]
[391976186,1761048642123,-166.143699,0.00023288,7]
[391976187,1761048642132,-166.143699,0.00023288,7]
[391976188,1761048642142,-166.143699,0.00023288,7]
[391976189,1761048642151,-166.143699,0.00023288,7]
[391976190,1761048642161,-166.143699,0.00023288,7]
[391976191,1761048642170,-166.143699,0.00023288,7]
[391976192,1761048642180,-166.143699,0.00023288,7]
[391976193,1761048642189,-166.143699,0.00023288,7]
[391976194,1761048642199,-166.143699,0.00023288,7]
[391976195,1761048642209,-166.143699,0.00023288,7]
[391976196,1761048642219,-166.143699,0.00023288,7]
[391976197,1761048642229,-166.143699,0.00023288,7]
[391976198,1761048642239,-166.143699,0.00023288,7]
[391976199,1761048642249,-166.143699,0.00023288,7]
[391976200,1761048642259,-166.143699,0.00023288,7]
[391976201,1761048642268,-151.0,0.00023288,7]
[391976202,1761048642278,-166.143699,0.00023288,7]
[391976203,1761048642287,-151.0,0.00023288,7]
[391976204,1761048642296,-151.0,0.00023288,7]
[391976206,1761048642305,-1141.862459,0.00023288,7]
[391976208,1761048642315,-166.143699,0.00023288,7]
[391976210,1761048642324,-166.143698,0.00023288,7]
[391976212,1761048642333,-1141.862459,0.00023288,7]
[391976214,1761048642343,-1141.862459,0.00023288,7]
[391976216,1761048642352,-1141.862459,0.00023288,7]
[391976218,1761048642361,-151.0,0.00023288,7]
[391976220,1761048642370,-1141.862459,0.00023288,7]
[391976222,1761048642380,-256.073474,0.00023288,7]
[391976224,1761048642389,-1141.862459,0.00023288,7]
[391976225,1761048642398,-1141.862459,0.00023288,7]
[391976226,1761048642407,-1141.862459,0.00023288,7]
[391976227,1761048642416,-1141.862459,0.00023288,7]
[391976228,1761048642426,-1141.862459,0.00023288,7]
[391976229,1761048642435,-1141.862459,0.00023288,7]
[391976230,1761048642445,-1141.862459,0.00023288,7]
[391976231,1761048642454,-1141.862459,0.00023288,7]
[391976233,1761048642464,-1141.862453,0.00023288,7]
[391976235,1761048642473,-1133.321455,0.00023288,7]
[391976238,1761048642482,-1133.321455,0.00023288,7]
[391976239,1761048642496,-1133.321455,0.00023288,7]
[391976240,1761048642506,-1133.321455,0.00023288,7]
[391976241,1761048642515,-1133.321455,0.00023288,7]
[391976244,1761048642525,-1133.321455,0.00023288,7]
[391976246,1761048642534,-151.0,0.00023288,7]
[391976248,1761048642544,-151.0,0.00023288,7]
[391976250,1761048642554,-1133.321455,0.00023288,7]
[391976251,1761048642563,-151.0,0.00023288,7]
[391976252,1761048642572,-151.0,0.00023288,7]
[391976253,1761048642582,-160.562711,0.00023288,7]
[391976254,1761048642592,-1133.321455,0.00023288,7]
[391976255,1761048642601,-1133.321455,0.00023288,7]
[391976256,1761048642611,-1133.321455,0.00023288,7]
[391976257,1761048642620,-1133.321455,0.00023288,7]
[391976258,1761048642630,-151.0,0.00023288,7]
[391976259,1761048642642,-1133.321455,0.00023288,7]
[391976260,1761048642652,-1133.321455,0.00023288,7]
[391976261,1761048642662,-1133.321455,0.00023288,7]
[391976262,1761048642671,-1133.321455,0.00023288,7]
[391976263,1761048642681,-1133.321455,0.00023288,7]
[391976264,1761048642691,-1133.321455,0.00023288,7]
[391976265,1761048642702,-151.0,0.00023288,7]
[391976266,1761048642712,-151.0,0.00023288,7]
[391976267,1761048642724,-151.0,0.00023288,7]
[391976268,1761048642734,-1133.321455,0.00023288,7]
[391976269,1761048642745,-151.0,0.00023288,7]
[391976270,1761048642756,-156.759514,0.00023288,7]
[391976271,1761048642767,-1133.321455,0.00023288,7]
[391976272,1761048642779,-151.0,0.00023288,7]
[391976273,1761048642790,-1133.321462,0.00023288,7]
[391976274,1761048642800,-151.0,0.00023288,7]
[391976275,1761048642810,-151.0,0.00023288,7]
[391976276,1761048642821,-151.0,0.00023288,7]
[391976277,1761048642831,-151.0,0.00023288,7]
[391976278,1761048642841,-151.0,0.00023288,7]
[391976279,1761048642851,-151.0,0.00023288,7]
[391976280,1761048642860,-151.0,0.00023288,7]
[391976281,1761048642870,-151.0,0.00023288,7]
[391976282,1761048642880,-151.0,0.00023288,7]
[391976284,1761048642890,-151.0,0.00023288,7]
[391976286,1761048642899,-255.796323,0.00023288,7]
[391976288,1761048642908,-152.42683,0.00023288,7]
[391976289,1761048642917,-151.0,0.00023288,7]
[391976290,1761048642927,-151.0,0.00023288,7]
[391976291,1761048642936,-151.0,0.00023288,7]
[391976292,1761048642945,-151.0,0.00023288,7]
[391976293,1761048642954,-151.0,0.00023288,7]
[391976294,1761048642963,-151.0,0.00023288,7]